Cogmind - Beta 10.2 @@@ ROGUE MODE // 2021.07.16 @ 10:35:27 Player: Lily Result: Destroyed by G-34 Mercenary with Small Laser Performance ------------- Evolutions (0) 0 Regions Visited (1) 200 Robots Destroyed (7) 35 Value Destroyed (103) 103 Prototype IDs (0) 0 Alien Tech Used (0) 0 Bonus (0) 0 TOTAL SCORE: 338 Bonus ------- None Cogmind --------- Core Integrity 0/250 Matter 272/300 Energy 230/250 System Corruption 0% Temperature Cool (6) Movement Walking (180) Ox2 Location -10/Materials Parts ------- > --- POWER (1) -------- Ion Engine > --- PROPULSION (2) --- Aluminum Leg > --- UTILITY (2) ------ Large Storage Unit Power Shielding > --- WEAPON (2) ------- (None) > --- INVENTORY (10) --- Light Ion Engine Small Storage Unit Medium Storage Unit Large Storage Unit Large Matter Pod (0) Peak State ------------ > --- POWER ------------ Ion Engine > --- PROPULSION ------- Aluminum Leg Aluminum Leg > --- UTILITY ---------- Large Storage Unit Large Matter Pod > --- WEAPON ----------- EM Pulse Gun Medium Laser > --- INVENTORY -------- Ion Engine Light Ion Engine Compact Wheel Small Storage Unit Medium Storage Unit Large Storage Unit Tractor Beam Medium Laser Small Laser Datajack [Rating: 8] Favorites ----------- Power Ion Engine Engine Ion Engine Propulsion Aluminum Leg Leg Aluminum Leg Utility Large Storage Unit Storage Large Storage Unit Protection Power Shielding Weapon Medium Laser Energy Gun Medium Laser Build | -11 -10 ------- Run | Scr Mat Slots Evolved . | . . Power . | . . Propulsion . | . . Utility . | . . Weapon . | . . Parts Attached 15 | 6 9 Power 2 | 1 1 Engine 2 | 1 1 Core . | . . Reactor . | . . Propulsion 3 | 2 1 Treads . | . . Leg 3 | 2 1 Wheel . | . . Hover . | . . Flight . | . . Utility 4 | 1 3 Device . | . . Storage 3 | 1 2 Processor . | . . Hackware . | . . Protection 1 | . 1 Artifact . | . . Weapon 6 | 2 4 Energy Gun 5 | 2 3 Energy Cannon . | . . Ballistic Gun . | . . Ballistic Cannon . | . . Launcher . | . . Special Weapon . | . . Impact Weapon . | . . Slashing Weapon . | . . Piercing Weapon . | . . Special Melee Weapon 1 | . 1 Unidentified Prototypes . | . . Parts Lost 9 | . 9 Power 1 | . 1 Propulsion 2 | . 2 Utility . | . . Weapon 6 | . 6 Highest Loss Streak 9 | . 9 Average Slot Usage (%) 94 | . 94 Engine 14 | . 14 Leg 26 | . 26 Storage 21 | . 21 Protection 4 | . 4 Energy Gun 25 | . 25 Naked Turns . | . . Heaviest Build 28 | 13 28 Greatest Support 20 | 20 20 Greatest Overweight (x) 7 | . 7 Average Overweight (x) . | . . Largest Inventory Capacity 10 | 6 10 Average Capacity 8 | 5 9 Most Carried 10 | 4 10 Average Carried 6 | 2 7 Final Capacity 10 | 6 10 Final Carried 5 | 4 5 Class Distribution -------------------- 100% | Mutant Dominant Class ---------------- Mutant | -10/Materials Resources | -11 -10 ----------- Run | Scr Mat Matter Collected 277 | 231 46 Remotely . | . . Salvage Created 351 | 61 290 Parts 12 | 3 9 Haulers Intercepted . | . . Recyclers Shooed . | . . Parts Field Recycled . | . . Retrieved Matter . | . . Parts Self-Destructed . | . . Prevented . | . . Kills | -11 -10 ------- Run | Scr Mat Combat Hostiles Destroyed 2 | . 2 Guns 2 | . 2 Classes Destroyed 4 | 1 3 Worker 1 | . 1 Recycler 3 | 1 2 Watcher 1 | . 1 Grunt 2 | . 2 Best Kill Streak 6 | 1 6 Combat Bots Only 1 | . 1 Max Kills in Single Turn 2 | 1 2 Gunslinging . | . . Exploded . | . . Melee . | . . Uniques/NPCs Destroyed . | . . Combat | -11 -10 -------- Run | Scr Mat Damage Taken 825 | . 825 Core 260 | . 260 Absorbed by Shields . | . . Core Remaining (%) 100 | 100 . Volleys Fired 21 | 5 16 Largest 2 | 2 2 Hottest 90 | 90 90 Shots Fired 39 | 10 29 Gun 39 | 10 29 Cannon . | . . Launcher . | . . Special . | . . Kinetic . | . . Thermal 23 | 5 18 Explosive . | . . Electromagnetic 16 | 5 11 Robot Hit Streak 6 | 4 6 Robot Miss Streak 1 | 1 1 Penetration Max . | . . Secondary Targets 1 | . 1 Max Gunslinging Chain 1 | . 1 Shots Hit Robots 23 | 6 17 Core Hits 12 | 2 10 Critical Hits . | . . Critical Kills . | . . Critical Parts Destroyed . | . . Melee Attacks . | . . Impact . | . . Slashing . | . . Piercing . | . . Sneak Attacks . | . . Combat Hostiles . | . . Follow-up Attacks . | . . Damage Inflicted 452 | 75 377 Guns 309 | 75 234 Cannons . | . . Explosions 143 | . 143 Melee . | . . Ramming . | . . Kinetic . | . . Thermal 288 | 37 251 Explosive . | . . Electromagnetic 164 | 38 126 Impact . | . . Slashing . | . . Piercing . | . . Highest Corruption . | . . Average Corruption . | . . Corruption Purged . | . . Overload Shots . | . . Overflow Damage . | . . Projectiles . | . . Explosions . | . . Melee . | . . Knockbacks . | . . Impact . | . . Kinetic . | . . Secondary . | . . Self-Inflicted Damage 25 | . 25 Shots 1 | . 1 Rammed . | . . Targets Rammed . | . . Kicked . | . . Crushed . | . . Highest Temperature 340 | 60 340 Average Temperature 135 | 20 160 Received Heat Transfer 450 | . 450 Siege Activations . | . . Robots Corrupted . | . . Combat Hostiles . | . . Parts Fried . | . . Impact Corruptions . | . . Robots Melted . | . . Combat Hostiles . | . . Parts Melted 1 | . 1 Heat Transferred 570 | 111 459 Parts Sabotaged . | . . Parts Stolen . | . . Parts Stripped . | . . Power Chain Reactions 1 | . 1 Missiles Intercepted . | . . Alert | -11 -10 ------- Run | Scr Mat Peak Influence 83 | 5 83 Initial 3 | . 3 Average 20 | 1 24 Maximum Alert Level . | . . Low Security (%) 100 | 100 100 Level 1 . | . . Level 2 . | . . Level 3 . | . . Level 4 . | . . Level 5 . | . . High Security . | . . Max Security . | . . Squads Dispatched 1 | . 1 Investigation 1 | . 1 Extermination . | . . Reinforcement . | . . Assault . | . . Garrison . | . . Intercept . | . . Construction Impeded . | . . Haulers Reinforced . | . . Stealth | -11 -10 --------- Run | Scr Mat Distress Signals 2 | . 2 Communications Jammed . | . . Distress Signals . | . . Times Spotted 8 | . 8 Peak Tracking Total 8 | . 8 Tactical Retreats . | . . Traps | -11 -10 ------- Run | Scr Mat Traps Triggered . | . . Indirectly . | . . Trap Hack Attempts . | . . Triggered . | . . Disarmed . | . . Reprogrammed . | . . Reused . | . . Traps Extracted . | . . Installed . | . . Triggered . | . . Machines | -11 -10 ---------- Run | Scr Mat Machines Disabled . | . . Max in Single Turn . | . . Machines Sabotaged . | . . Garrisons Compromised . | . . Overloaded Fab Kills . | . . Fab Network Shutdowns . | . . Hacking | -11 -10 --------- Run | Scr Mat Machines Accessed 4 | . 4 Terminals 2 | . 2 Fabricators . | . . Repair Stations 1 | . 1 Recycling Units 1 | . 1 Scanalyzers . | . . Garrison Access . | . . Total Hacks 15 | . 15 Successful 8 | . 8 Failed 7 | . 7 Catastrophic 1 | . 1 Database Lockouts . | . . Manual . | . . Terminals 5 | . 5 Fabricators . | . . Repair Stations 3 | . 3 Recycling Units 7 | . 7 Scanalyzers . | . . Garrison Access . | . . Terminal Hacks 1 | . 1 Zone Layout 1 | . 1 Fabricator Hacks . | . . Repair Station Hacks 1 | . 1 Scan Component 1 | . 1 Recycling Unit Hacks 6 | . 6 Recycle Component 2 | . 2 Process 1 | . 1 Report Inventory 2 | . 2 Retrieve Components 1 | . 1 Scanalyzer . | . . Garrison Access Hacks . | . . Unauthorized Hacks . | . . Terminals . | . . Fabricators . | . . Repair Stations . | . . Recycling Units . | . . Scanalyzers . | . . Garrison Access . | . . Data Cores Recovered . | . . Used . | . . Hacking Detections 4 | . 4 Full Trace Events 1 | . 1 Feedback Events . | . . Feedback Blocked . | . . Robot Schematics Acquired . | . . Robots Built . | . . Matter . | . . Time . | . . Total Robot Build Rating . | . . Part Schematics Acquired . | . . Parts Built . | . . Matter . | . . Time . | . . Total Part Build Rating . | . . Parts Repaired . | . . Time . | . . Parts Recycled 2 | . 2 Recycled Matter 15 | . 15 Retrieved Matter . | . . Retrieved Components 3 | . 3 Parts Scanalyzed . | . . Part Schematics Acquired . | . . Parts Damaged . | . . Bothacking | -11 -10 ------------ Run | Scr Mat Used RIF Installer . | . . Robots Hacked . | . . Non-combat . | . . Combat . | . . Robot Hacks Applied . | . . Relay Couplers Released . | . . Robots Rewired . | . . Allies Hacked . | . . Hacks Repelled . | . . Allies | -11 -10 -------- Run | Scr Mat Total Allies . | . . Largest Group . | . . Highest-Rated Group . | . . Highest-Rated Ally . | . . Total Orders . | . . Ally Attacks . | . . Total Damage . | . . Kills . | . . Allies Corrupted . | . . Allies Melted . | . . Intel | -11 -10 ------- Run | Scr Mat Robot Analysis Total . | . . Derelict Logs Recovered . | . . Drone Launches . | . . Drone Recoveries . | . . Exploration | -11 -10 ------------- Run | Scr Mat Turns Passed 391 | 72 319 Spaces Moved 217 | 44 173 Core 17 | 14 3 Treads . | . . Legs 200 | 30 170 Wheels . | . . Hover . | . . Flight . | . . Fastest Speed 50 | 50 120 Average Speed 135 | 97 145 Slowest Speed 400 | 120 400 Overloaded Moves . | . . Propulsion Burnouts . | . . Robots Hopped . | . . Cave-ins Triggered . | . . Exploration Rate (%) 14 | 4 25 Regions Visited 1 Branch Regions . Pre-discovered Areas . | . . Known Exits Taken . | . . Unknown Exits Taken 1 | 1 . Scrap Searched . | . . Spaces Dug . | . . Terrain Destroyed 2 | . 2 Melee . | . . Projectile . | . . AOE 2 | . 2 Terrain Rammed . | . . Walls Destroyed . | . . Machines Disabled . | . . Actions | -11 -10 --------- Run | Scr Mat Total 273 | 61 212 Wait . | . . Move 216 | 43 173 Hop . | . . Pick Up 19 | 7 12 Fast Attach 3 | 3 . Attach 11 | 3 8 Detach . | . . Swap 1 | . 1 Drop 2 | . 2 Fire 21 | 5 16 Melee . | . . Ram . | . . Kick . | . . Crush . | . . Escape Stasis . | . . Rewire . | . . Trap . | . . Miscellaneous . | . . Route ------- -11/Scrapyard -10/Materials (discovered 1 exit: [Mat]) History --------- Turn | Location | Event 2 | -11/Scrapyard | Met Revision 17 21 | -11/Scrapyard | Discovered new exit (range 13) 73 | -11/Scrapyard | Entered Materials 103 | -10/Materials | Discovered new exit (range 13) 301 | -10/Materials | Build established: Mutant 376 | -10/Materials | Core integrity fell below 50% 386 | -10/Materials | Core integrity fell below 20% 392 | -10/Materials | Destroyed by G-34 Mercenary with Small Laser Last Messages --------------- 00371_ K-01 Serf collects debris. 00374_ Sml. Laser destroyed. 00376_ K-01 Serf collects debris. 00376_ Aluminum Leg destroyed. 00378_ R-06 Scavenger collects Sml. Storage Unit. 00378_ K-01 Serf collects debris. 00381_ R-06 Scavenger collects Broken Tractor Beam. 00383_ K-01 Serf collects debris. 00386_ R-06 Scavenger collects Aluminum Leg. 00386_ K-01 Serf cleans the Atomic Centrifuge. 00389_ R-06 Scavenger collects Ion Engine. 00389_ K-01 Serf cleans the Atomic Centrifuge. 00390_ Datajack destroyed. [Achievement: First Step to Greatness] The achievement interface (ESC then open Records) offers an effective way to explore all of your earned achievements as well as seek out new goals for future runs. Important note for Steam players: Cogmind player global achievement rates displayed by Steam are all significantly underreported, in some cases by a huge margin, due to how they are calculated by Valve. Map ----- +----------------------------------------------------+ | ??????????????????????????????? | | ??????????????????????????????? | | ??????????????????????????????? | | ??????????????????????????????? | | ??????????????????????????????? | | ??????????????????????????????? | | ??????????????????????????????? | | ??????????????????????????????? | | ??????????????????????????????? | | ??????????????????????????????? | | ??????????????????????????????? | | ??????????????????????????????? | | ???????????? ???????????????? | | ???????????? ?????????????? | | ??????????? ??????????? | | ???????????# ????????? | | ???????????# ???????? | | ???????????+ ???????? | | ???????????# ????????? | | ???????????# !!!?????????? | | ???????????# !!??????????? | | ???????????# !???????????? | | ???????????# ????????????? | | ???????????# ?????????????? | | ??########## %#########??????? | | ??# g@gk!%#% # #??????? | | ??#g """g ; # #??????? | | ### """ %;% ; #??????? | | #"" """r ; # #??????? | | #"Y g # # #??????? | | #"" """ # a# #??????? | | ### """ # # #??????? | | ??# """ # # #??????? | | ??# # / #??????? | | ??########## # #??????? | | ???????????# # #??????? | | ???????????# #########??????? | | ???????????# #???######?????? | | ???????????# #??##! ##????? | | ???????????# #??#! !#????? | | ???????????# #??#! !#????? | | ???????????# #??### #????? | | ???????????# #??# # #????? | | ???????????# #??# # ""#????? | | ???????????# #??# # T"#????? | | ???????????# #??# # ""#????? | | ?????????### #??# # #????? | | ?????????# #### # #????? | | ?????????# # ###### | | ?????????# # ###### | +----------------------------------------------------+ Best States ------------- Heat Dissipation 25 Energy Generation 10 Energy Capacity 250 Matter Stores 287 Matter Capacity 450 Sight Range 16 Terrain Scan Density 10 Power Shielding 33 Evasion (%) 50 Item Schematics ----------------- None Robot Schematics ------------------ None Fabricated ------------ Nothing Alien Tech Used ----------------- None Achievements -------------- First Step to Greatness Challenges ------------ None Game ------ Seed 1 Manual? 1 Play Time 00:19:11 Cumulative 0.5 hours Start 2021.07.16 @ 10:14:54 End 2021.07.16 @ 10:35:27 Sessions 1 Manual Loads 0 Difficulty Rogue Special Mode None Game No. 2 Rogue 1 Adventurer 1 Explorer 0 Win Type - Total 0 Types 0/0/0/0/0/0/0/0/0 Lore% 1 Gallery% 4 Achievement% 5 Wizard Run 0 Options --------- ASCII 1 Keyboard 0 Movement Mouse Keybinds 0 Fullscreen 1 Font 18/SmallcapsGlow Map View 76x50 Tactical HUD 1 Map Filters NONE Filters NONE Steam 1 RUN: 63b4dd3f-5459-4492-aeb9-8235cb50b92d